bitfinex/quotes_BTCUSD_20250218
["timestamp","ask_amount","ask_price","bid_price","bid_amount"]
[1739879855922,0.156561,95810.0,95808.0,0.01166517]
[1739879856123,0.156558,95811.0,95808.0,0.01166517]
[1739879856295,0.15656,95810.0,95808.0,0.01166517]
[1739879856776,0.15656,95810.0,95807.0,0.10250365]
[1739879857139,0.15656,95810.0,95808.0,0.002]
[1739879857792,0.01975768,95812.0,95808.0,0.002]
[1739879858398,0.01975768,95812.0,95808.0,0.005]
[1739879858605,0.01975768,95812.0,95808.0,0.003]
[1739879858796,0.01975768,95812.0,95809.0,0.01055037]
[1739879859207,0.17631368,95812.0,95809.0,0.01055037]
[1739879859790,0.01975768,95812.0,95809.0,0.01055037]
[1739879860484,0.17631368,95812.0,95809.0,0.01355037]
[1739879860851,0.01975768,95812.0,95809.0,0.01355037]
[1739879861027,0.01975768,95812.0,95810.0,0.0116054]
[1739879862116,0.01975768,95812.0,95810.0,0.0136054]
[1739879862510,0.01975768,95812.0,95810.0,0.0166054]
[1739879863207,0.17631368,95812.0,95810.0,0.0166054]
[1739879863631,0.01975768,95812.0,95810.0,0.0166054]
[1739879863825,0.01975768,95812.0,95811.0,0.01191091]
[1739879865206,0.01975768,95812.0,95811.0,0.01391091]
[1739879866853,0.01975768,95812.0,95811.0,0.01691091]
[1739879871553,0.01975768,95812.0,95811.0,0.01491091]
[1739879871785,0.01975768,95812.0,95811.0,0.01191091]
[1739879871985,0.01975768,95812.0,95811.0,0.01891091]
[1739879876435,0.17631368,95812.0,95811.0,0.01891091]
[1739879876635,0.01975768,95812.0,95811.0,0.01891091]
[1739879879196,0.17631368,95812.0,95811.0,0.01891091]
[1739879879962,0.01975768,95812.0,95811.0,0.01891091]
[1739879880641,0.17631368,95812.0,95811.0,0.01891091]
[1739879881701,0.17631368,95812.0,95811.0,0.01925131]
[1739879887200,0.17631368,95812.0,95811.0,0.01525131]
[1739879887412,0.01975768,95812.0,95811.0,0.01925131]
[1739879887584,0.17631368,95812.0,95811.0,0.01925131]
[1739879888186,0.17631368,95812.0,95811.0,0.01225131]
[1739879888389,0.17631368,95812.0,95811.0,0.01625131]
[1739879888607,0.17631368,95812.0,95811.0,0.01925131]
[1739879888795,0.17631368,95812.0,95811.0,0.01625131]
[1739879889180,0.17631368,95812.0,95811.0,0.01925131]
[1739879889940,0.17631368,95812.0,95811.0,0.01525131]
[1739879890464,0.17631368,95812.0,95811.0,0.01925131]
[1739879895709,0.17631368,95812.0,95811.0,0.0073404]
[1739879898321,2.56219468,95812.0,95811.0,0.0073404]
[1739879898525,2.91489803,95812.0,95811.0,0.0073404]
[1739879898765,5.18858903,95812.0,95811.0,0.0073404]
[1739879898967,5.16257003,95812.0,95811.0,0.0073404]
[1739879899147,5.16257003,95812.0,95811.0,0.0033404]
[1739879899148,5.34443368,95812.0,95811.0,0.0033404]
[1739879900005,5.34443368,95812.0,95811.0,0.0063404]
[1739879900601,5.34443368,95812.0,95811.0,0.0033404]
[1739879902430,5.34443368,95812.0,95811.0,0.0053404]
[1739879902630,5.34443368,95812.0,95811.0,0.0003404]
[1739879903090,5.24193003,95812.0,95811.0,0.0003404]
[1739879903299,1.68907968,95812.0,95811.0,0.0003404]
[1739879903501,0.71455968,95812.0,95811.0,0.0003404]
[1739879903712,1.09172026,95812.0,95811.0,0.0003404]
[1739879903857,0.95217426,95812.0,95811.0,0.0003404]
[1739879904063,0.53010426,95812.0,95811.0,0.0003404]
[1739879904262,0.17631368,95812.0,95811.0,0.0003404]
[1739879904465,0.32631368,95812.0,95811.0,0.0003404]
[1739879905433,0.57610068,95812.0,95811.0,0.0003404]
[1739879906109,0.59245883,95812.0,95811.0,0.0003404]
[1739879913044,0.34267183,95812.0,95811.0,0.0003404]
[1739879916769,0.32631368,95812.0,95811.0,0.0003404]
[1739879921174,0.34267187,95812.0,95811.0,0.0003404]
[1739879926039,0.34267187,95812.0,95811.0,0.0013404]
[1739879927494,0.19267187,95812.0,95811.0,0.0033404]
[1739879927722,0.34267187,95812.0,95811.0,0.0033404]
[1739879929078,0.32631368,95812.0,95811.0,0.0033404]
[1739879930041,0.156556,95812.0,95811.0,0.0033404]
[1739879932020,0.17753782,95812.0,95811.0,0.0033404]
[1739879932762,0.17753782,95812.0,95811.0,0.0003404]
[1739879932943,0.17753782,95812.0,95811.0,0.0033404]
[1739879933326,0.17753782,95812.0,95811.0,0.0053404]
[1739879933469,0.17753782,95812.0,95811.0,0.0003404]
[1739879933695,0.17753782,95812.0,95811.0,0.0073404]
[1739879935124,0.17753782,95812.0,95811.0,0.0033404]
[1739879935372,0.17753782,95812.0,95811.0,0.0073404]
[1739879935494,0.17753782,95812.0,95811.0,0.0043404]
[1739879935700,0.17753782,95812.0,95811.0,0.0073404]
[1739879940522,0.17770802,95812.0,95811.0,0.0073404]
[1739879942432,0.208738,95814.0,95811.0,0.0073404]
[1739879942433,0.20292562,95814.0,95811.0,0.0073404]
[1739879942633,0.20292562,95814.0,95811.0,0.0077803]
[1739879943042,0.156556,95812.0,95811.0,0.0077803]
[1739879943654,0.156556,95812.0,95811.0,0.0047803]
[1739879943858,0.156556,95812.0,95811.0,0.0077803]
[1739879944319,0.178049,95812.0,95811.0,0.0077803]
[1739879944546,0.021493,95812.0,95811.0,0.10628395]
[1739879944719,0.021493,95812.0,95811.0,0.11694639]
[1739879944881,0.156551,95816.0,95811.0,0.19654639]
[1739879945080,0.156551,95816.0,95812.0,0.10250365]
[1739879945279,0.00575589,95817.0,95812.0,0.10250365]
[1739879945512,0.16230489,95817.0,95813.0,0.02415464]
[1739879945706,0.16230489,95817.0,95811.0,0.09204274]
[1739879945707,0.00575589,95817.0,95814.0,0.10250365]
[1739879946105,0.16230489,95817.0,95814.0,0.10250365]
[1739879946483,0.00575589,95817.0,95814.0,0.10250365]
[1739879947112,0.18318591,95817.0,95814.0,0.10250365]
[1739879947316,0.00575589,95817.0,95814.0,0.10250365]
[1739879947492,0.00575589,95817.0,95815.0,0.01905464]
[1739879947692,0.00575589,95817.0,95816.0,0.10250365]
[1739879948372,0.00575589,95817.0,95816.0,0.10173104]
[1739879949065,0.16230389,95817.0,95816.0,0.10173104]
[1739879949445,0.00575589,95817.0,95816.0,0.10573104]
[1739879949657,0.00575589,95817.0,95816.0,0.13201388]
[1739879950482,0.02690836,95817.0,95816.0,0.13201388]
[1739879950654,0.00575589,95817.0,95816.0,0.13201388]
[1739879952749,0.02680188,95817.0,95816.0,0.13201388]
[1739879952956,0.00575589,95817.0,95816.0,0.13201388]
[1739879953490,0.0271426,95817.0,95816.0,0.13201388]
[1739879959750,0.208717,95824.0,95816.0,0.13201388]
[1739879960091,0.156546,95819.0,95817.0,0.02200566]
[1739879960386,0.156546,95819.0,95818.0,0.10250365]
[1739879960794,0.00524619,95827.0,95818.0,0.10250365]
[1739879960932,0.156544,95820.0,95818.0,0.10250365]
[1739879961307,0.156545,95819.0,95818.0,0.10250365]
[1739879961463,0.156545,95819.0,95818.0,0.12474174]
[1739879961667,0.156541,95822.0,95818.0,0.12474174]
[1739879961871,0.156542,95821.0,95818.0,0.12474174]
[1739879962095,0.156543,95821.0,95818.0,0.12474174]
[1739879962393,0.208719,95823.0,95818.0,0.12474174]
[1739879962594,0.00534583,95829.0,95820.0,0.0831]
[1739879962819,0.00534583,95829.0,95821.0,0.10250365]
[1739879963108,0.15653,95828.0,95821.0,0.10250365]
[1739879963473,0.02146045,95830.0,95821.0,0.10250365]
[1739879963652,0.208699,95832.0,95821.0,0.10354715]
[1739879963863,0.156531,95828.0,95822.0,0.04301958]
[1739879964075,0.156531,95828.0,95823.0,0.10250365]
[1739879964517,0.208704,95830.0,95823.0,0.10250365]
[1739879964720,0.15653,95828.0,95823.0,0.10250365]
[1739879965125,0.208706,95829.0,95823.0,0.10250365]
[1739879965314,0.365238,95828.0,95824.0,0.02723812]
[1739879965674,0.156532,95827.0,95825.0,0.10250365]
[1739879966052,0.1567022,95827.0,95825.0,0.10250365]
[1739879967375,0.1567022,95827.0,95825.0,0.10350365]
[1739879967576,0.0001702,95827.0,95825.0,0.10350365]
[1739879967777,0.0001702,95827.0,95826.0,0.02223809]
[1739879968079,0.0001702,95827.0,95826.0,0.12474174]
[1739879969889,0.1567022,95827.0,95826.0,0.12474174]
[1739879970315,0.1567022,95827.0,95826.0,0.10350365]
[1739879971976,0.0001702,95827.0,95826.0,0.10350365]
[1739879978655,0.0001702,95827.0,95826.0,0.33918007]
[1739879978829,0.0001702,95827.0,95826.0,0.18160365]
[1739879979247,0.0001702,95827.0,95826.0,0.18264705]
[1739879979477,0.0001702,95827.0,95826.0,0.21642027]
[1739879979611,0.0001702,95827.0,95826.0,0.21542027]
[1739879980022,0.0001702,95827.0,95826.0,0.21842027]
[1739879980391,0.0001702,95827.0,95826.0,0.22142027]
[1739879980585,0.0001702,95827.0,95826.0,0.22924436]
[1739879982929,0.1567022,95827.0,95826.0,0.11632774]
[1739879985251,0.1567022,95827.0,95826.0,0.10850365]
[1739879995766,0.1567022,95827.0,95826.0,0.006]
[1739879996583,0.1567022,95827.0,95826.0,0.003]
[1739879996912,0.1567022,95827.0,95826.0,0.004]
[1739879997133,0.1567022,95827.0,95826.0,0.001]
[1739879997561,0.156541,95821.0,95820.0,0.0003404]
[1739879997733,0.156541,95821.0,95820.0,0.10284405]
[1739879999304,1.333215,95821.0,95820.0,0.0003404]
[1739879999473,2.722997,95821.0,95820.0,0.0023404]
[1739879999679,2.305455,95821.0,95820.0,0.0023404]
[1739879999876,2.305455,95821.0,95820.0,0.0003404]
[1739880000042,2.305455,95821.0,95820.0,0.0013404]
[1739880000403,1.024736,95821.0,95820.0,0.0023404]
[1739880000536,0.156541,95821.0,95820.0,0.10484405]
[1739880000748,0.156541,95821.0,95820.0,0.1153625]
[1739880001870,0.156541,95821.0,95820.0,0.1133625]
[1739880002083,0.156541,95821.0,95820.0,0.1143625]
[1739880002857,0.156541,95821.0,95820.0,0.1163625]
[1739880003008,0.156541,95821.0,95820.0,0.10584405]
[1739880003882,0.202641,95821.0,95820.0,0.0033404]
[1739880004082,1.484861,95821.0,95820.0,0.0033404]
[1739880004324,1.477167,95821.0,95820.0,0.0033404]
[1739880004735,0.368025,95821.0,95820.0,0.0013404]
[1739880004941,0.315308,95821.0,95820.0,0.0003404]
[1739880005150,0.315308,95821.0,95820.0,0.0013404]
[1739880007842,0.315308,95821.0,95820.0,0.0003404]
[1739880010155,0.33166497,95821.0,95820.0,0.0003404]
[1739880011121,0.21899797,95821.0,95820.0,0.0003404]
[1739880011494,3.01191997,95821.0,95820.0,0.0003404]
[1739880011699,3.31389997,95821.0,95820.0,0.0003404]
[1739880011914,3.31389997,95821.0,95820.0,4e-07]
[1739880011915,3.94349562,95821.0,95820.0,4e-07]
[1739880012114,0.58455546,95821.0,95820.0,4e-07]
[1739880012773,0.58455546,95821.0,95794.0,0.00782734]
[1739880012774,0.0472,95819.0,95794.0,0.00782734]
[1739880013030,0.156584,95795.0,95794.0,0.00782734]
[1739880013235,0.156584,95795.0,95794.0,0.00013174]
[1739880014630,0.156584,95795.0,95794.0,0.00113174]
[1739880015031,0.156584,95795.0,95794.0,0.00013174]
[1739880015944,0.17294403,95795.0,95794.0,0.00013174]
[1739880016778,2.27321903,95795.0,95794.0,0.00013174]
[1739880017438,2.27834135,95795.0,95794.0,0.00013174]
[1739880019007,1.77636035,95795.0,95794.0,0.00013174]
[1739880019621,1.34300635,95795.0,95794.0,0.00013174]
[1739880020186,0.57379032,95795.0,95794.0,0.00013174]
[1739880020391,0.16170632,95795.0,95794.0,0.00013174]
[1739880021011,0.156584,95795.0,95794.0,0.10263539]
[1739880021217,0.00533276,95800.0,95794.0,0.17933539]
[1739880021398,0.00533276,95800.0,95795.0,0.14780365]
[1739880021623,0.156582,95796.0,95795.0,0.14780365]
[1739880021829,0.208748,95809.0,95795.0,0.14780365]
[1739880022047,0.208742,95812.0,95796.0,0.00104378]
[1739880022251,0.12235905,95810.0,95797.0,0.10250365]
[1739880022451,0.156574,95801.0,95798.0,0.03826086]
[1739880022654,0.156574,95801.0,95799.0,0.10250365]
[1739880023243,0.156576,95800.0,95799.0,0.10250365]
[1739880023444,0.156576,95800.0,95799.0,0.13761909]
[1739880024119,0.156576,95800.0,95799.0,0.14261909]
[1739880024528,0.156576,95800.0,95799.0,0.13761909]
[1739880024741,0.156576,95800.0,95799.0,0.14961909]
[1739880025499,0.156576,95800.0,95799.0,0.14461909]
[1739880026101,0.156576,95800.0,95799.0,0.13761909]
[1739880026528,0.156576,95800.0,95799.0,0.10250365]
[1739880027221,0.156576,95800.0,95799.0,0.10750365]
[1739880027448,0.156576,95800.0,95799.0,0.10950365]
[1739880027784,0.156576,95800.0,95799.0,0.10850365]
[1739880027981,0.156576,95800.0,95799.0,0.11550365]
[1739880028366,0.156576,95800.0,95799.0,0.17218529]
[1739880028544,0.156576,95800.0,95799.0,0.15918529]
[1739880028978,0.156576,95800.0,95799.0,0.17218529]
[1739880029617,0.2089273,95805.0,95799.0,0.17218529]
[1739880029820,0.0001703,95805.0,95800.0,0.156574]
[1739880030099,0.0001703,95805.0,95801.0,0.17280681]
[1739880030359,0.156569,95804.0,95801.0,0.17280681]
[1739880030610,0.156571,95803.0,95801.0,0.16803281]
[1739880030860,0.0001703,95805.0,95801.0,0.16803281]
[1739880031102,0.0001703,95805.0,95804.0,0.156569]
[1739880031349,0.0001703,95805.0,95804.0,0.10354731]
[1739880031606,0.1567383,95805.0,95804.0,0.10250365]
[1739880032127,0.0001703,95805.0,95804.0,0.10250365]
[1739880032381,0.0001703,95805.0,95804.0,0.10950365]
[1739880032625,0.0001703,95805.0,95804.0,0.20513504]
[1739880033650,0.0001703,95805.0,95804.0,0.21113504]
[1739880034444,0.1567383,95805.0,95804.0,0.21113504]
[1739880034643,0.0001703,95805.0,95804.0,0.21113504]
[1739880037083,0.1567383,95805.0,95804.0,0.21113504]
[1739880037818,0.0001703,95805.0,95804.0,0.21113504]
[1739880038571,0.0001703,95805.0,95804.0,0.36770404]
[1739880038777,0.0001703,95805.0,95804.0,0.21113504]
[1739880040075,0.0001703,95805.0,95804.0,0.36770404]
[1739880041560,0.0001703,95805.0,95804.0,0.21113504]
[1739880041765,0.0001703,95805.0,95804.0,0.36770404]
[1739880044341,0.0001703,95805.0,95804.0,0.77290404]
[1739880045283,0.0001703,95805.0,95804.0,0.78071582]
[1739880046320,0.0001703,95805.0,95804.0,0.77471582]
[1739880046548,0.0001703,95805.0,95804.0,0.76771582]
[1739880046702,0.0001703,95805.0,95804.0,0.77471582]
[1739880047002,0.0001703,95805.0,95804.0,0.78171582]
[1739880052239,0.0001703,95805.0,95804.0,0.83081582]
[1739880052827,0.0001703,95805.0,95804.0,0.85381582]
[1739880053238,0.0001703,95805.0,95804.0,0.86633451]
[1739880054273,0.0001703,95805.0,95804.0,1.40513451]
[1739880054473,0.0001703,95805.0,95804.0,1.43773292]
[1739880056994,0.0001703,95805.0,95804.0,1.58773292]
[1739880057242,0.17736974,95834.0,95805.0,0.15]
[1739880057441,0.17736974,95834.0,95815.0,0.10250365]
[1739880057645,0.156538,95824.0,95819.0,0.156543]
[1739880057853,0.156538,95824.0,95820.0,0.10250365]
[1739880058080,0.17736974,95834.0,95820.0,0.10250365]
[1739880058259,0.156539,95823.0,95820.0,0.10250365]
[1739880058505,0.208714,95825.0,95821.0,0.06765136]
[1739880058781,0.156536,95825.0,95822.0,0.10250365]
[1739880059948,0.156533,95826.0,95822.0,0.10250365]
[1739880060079,0.156533,95826.0,95822.0,0.10450365]
[1739880060287,0.156533,95826.0,95823.0,0.03579181]
[1739880060489,0.156533,95827.0,95824.0,0.10250365]
[1739880060686,0.02320174,95833.0,95824.0,0.10250365]
[1739880060939,0.208675,95843.0,95834.0,0.156519]
[1739880061145,0.20868,95841.0,95835.0,0.15989565]
[1739880061349,0.02383499,95837.0,95835.0,0.15989565]
[1739880061556,0.00061124,95837.0,95835.0,0.15989565]
[1739880063834,0.156517,95836.0,95835.0,0.11150365]
[1739880064031,0.02310886,95841.0,95835.0,0.10650365]
[1739880064166,0.02310886,95841.0,95835.0,0.10250365]
[1739880064375,0.156516,95837.0,95835.0,0.10750365]
[1739880064579,0.156515,95837.0,95836.0,0.03396286]
[1739880064821,0.156515,95837.0,95836.0,0.13646651]
[1739880065437,0.208685,95839.0,95836.0,0.13646651]
[1739880065671,0.156514,95838.0,95837.0,0.10250365]
[1739880067000,0.156514,95838.0,95837.0,0.11150365]
[1739880067504,0.0001702,95839.0,95837.0,0.1417028]
[1739880067740,0.1566822,95839.0,95837.0,0.1417028]
[1739880067942,0.0001702,95839.0,95837.0,0.1417028]
[1739880068388,0.0001702,95839.0,95837.0,0.11150365]
[1739880068778,0.0001702,95839.0,95837.0,0.10650365]
[1739880069180,0.0001702,95839.0,95838.0,0.156514]
[1739880069386,0.0001702,95839.0,95838.0,0.26006101]
[1739880069583,0.0001702,95839.0,95838.0,0.25901765]
[1739880069761,0.0001702,95839.0,95838.0,0.34782712]
[1739880070207,0.0001702,95839.0,95838.0,0.42912712]
[1739880070766,0.1566822,95839.0,95838.0,0.10950365]
[1739880071051,0.1566822,95839.0,95838.0,0.10650365]
[1739880071259,0.0001702,95839.0,95838.0,0.10650365]
[1739880071398,0.1566822,95839.0,95838.0,0.10650365]
[1739880071611,0.0001702,95839.0,95838.0,0.15000402]
[1739880071805,0.1566822,95839.0,95838.0,0.14600402]
[1739880072079,0.1566822,95839.0,95838.0,0.10250365]
[1739880072280,0.2338822,95839.0,95838.0,0.007]
[1739880072512,0.3969842,95839.0,95838.0,0.013]
[1739880072712,0.3969842,95839.0,95822.0,0.0003404]
[1739880073022,0.233738,95823.0,95822.0,0.0003404]
[1739880073427,0.281538,95823.0,95822.0,0.0003404]
[1739880073622,0.757451,95823.0,95822.0,0.0003404]
[1739880073826,2.596001,95823.0,95822.0,0.0013404]
[1739880074034,2.555801,95823.0,95822.0,0.0013404]
[1739880074230,2.344139,95823.0,95822.0,0.0073404]
[1739880075039,0.281538,95823.0,95822.0,0.0063404]
[1739880075340,0.281538,95823.0,95822.0,0.0123404]
[1739880075498,2.932187,95823.0,95822.0,0.0063404]
[1739880075705,2.508546,95823.0,95822.0,0.0003404]
[1739880075929,2.49352949,95823.0,95822.0,0.0023404]
[1739880076277,2.49352949,95823.0,95822.0,0.0003404]
[1739880076560,2.45984249,95823.0,95822.0,0.0003404]
[1739880076772,2.25146649,95823.0,95822.0,0.0003404]
[1739880076976,0.68595949,95823.0,95822.0,0.0013404]
[1739880077209,0.68595949,95823.0,95822.0,0.0023404]
[1739880078051,0.68595949,95823.0,95822.0,0.0013404]
[1739880078459,0.68595949,95823.0,95822.0,0.0033404]
[1739880078888,0.68595949,95823.0,95822.0,0.0013404]
[1739880079812,0.68595949,95823.0,95822.0,0.0023404]
[1739880080816,0.68595949,95823.0,95822.0,0.0033404]
[1739880081158,0.68595949,95823.0,95822.0,0.0003404]
[1739880082059,0.68595949,95823.0,95822.0,0.0013404]
[1739880083275,0.68595949,95823.0,95822.0,0.0023404]
[1739880085683,0.669605,95823.0,95822.0,0.0023404]
[1739880088909,0.68596035,95823.0,95822.0,0.0023404]
[1739880091407,0.68596035,95823.0,95822.0,0.0013404]
[1739880092024,0.29789335,95823.0,95822.0,0.0013404]
[1739880092187,5.53560435,95823.0,95822.0,0.0013404]
[1739880092406,5.53560435,95823.0,95822.0,0.0003404]
[1739880092407,5.52961735,95823.0,95822.0,0.0003404]
[1739880092597,5.30223935,95823.0,95822.0,0.0003404]
[1739880092795,5.285884,95823.0,95822.0,0.0003404]
[1739880092995,4.494575,95823.0,95822.0,0.0003404]
[1739880094278,4.494575,95823.0,95822.0,0.0013404]
[1739880094383,4.59707865,95823.0,95822.0,0.0013404]
[1739880094797,4.494575,95823.0,95822.0,0.0023404]
[1739880095000,0.995209,95823.0,95822.0,0.0023404]
[1739880095264,0.281538,95823.0,95822.0,0.0013404]
[1739880095471,0.281538,95823.0,95822.0,0.0003404]
[1739880095472,5.012903,95823.0,95822.0,0.0003404]
[1739880095671,4.632903,95823.0,95822.0,0.0003404]
[1739880096358,4.7564869,95823.0,95822.0,0.0003404]
[1739880096559,4.65398325,95823.0,95822.0,0.0003404]
[1739880097201,3.59849525,95823.0,95822.0,0.0003404]
[1739880097440,3.54170991,95823.0,95822.0,0.0003404]
[1739880098124,3.57649521,95823.0,95822.0,0.0003404]
[1739880098480,3.55346721,95823.0,95822.0,0.0003404]
[1739880098707,3.10145221,95823.0,95822.0,0.0003404]
[1739880099097,3.35395586,95823.0,95822.0,4e-07]
[1739880099300,0.60626386,95823.0,95822.0,4e-07]
[1739880099875,0.63774785,95823.0,95822.0,4e-07]
[1739880100268,0.156572,95802.0,95794.0,0.0003406]
[1739880100993,0.156572,95802.0,95801.0,6e-07]
[1739880100994,4.45658071,95802.0,95801.0,6e-07]
[1739880101162,0.36303827,95802.0,95801.0,6e-07]
[1739880101623,0.3836593,95802.0,95801.0,0.00344154]
[1739880102119,0.48616295,95802.0,95801.0,0.00344154]
[1739880102537,0.50916295,95802.0,95801.0,0.00944154]
[1739880102917,0.50916295,95802.0,95801.0,0.00344154]
[1739880103146,0.48716295,95802.0,95801.0,0.00344154]
[1739880103524,0.51016295,95802.0,95801.0,0.00044154]
[1739880103918,5.90465295,95802.0,95801.0,0.00244154]
[1739880104338,5.88829354,95802.0,95801.0,0.00044154]
[1739880104743,5.88929354,95802.0,95801.0,0.00044154]
[1739880107008,5.86629354,95802.0,95801.0,0.00044154]
[1739880107297,5.90565428,95802.0,95801.0,0.00044154]
[1739880110836,5.78015063,95802.0,95801.0,0.00044154]
[1739880111047,2.53532233,95802.0,95801.0,0.00044154]
[1739880111670,2.57010763,95802.0,95801.0,0.00044154]
[1739880112390,2.55374689,95802.0,95801.0,0.00044154]
[1739880114110,1.22887356,95802.0,95801.0,0.00044154]
[1739880114933,1.33137721,95802.0,95801.0,0.00044154]
[1739880115162,1.33154751,95802.0,95801.0,0.00044154]
[1739880115594,1.3479078,95802.0,95801.0,0.00044154]
[1739880115767,1.3459078,95802.0,95801.0,0.00044154]
[1739880115947,1.3469078,95802.0,95801.0,0.00044154]
[1739880116349,1.3806931,95802.0,95801.0,0.00044154]
[1739880116757,1.3816931,95802.0,95801.0,0.00044154]
[1739880117637,1.27918945,95802.0,95801.0,0.00044154]
[1739880118913,1.24440415,95802.0,95801.0,0.00044154]
[1739880122427,1.07988215,95802.0,95801.0,0.00044154]
[1739880122646,0.32942415,95802.0,95801.0,0.00044154]
[1739880122855,2.81916915,95802.0,95801.0,0.00044154]
[1739880123028,2.71026815,95802.0,95801.0,0.00044154]
[1739880123407,2.70926815,95802.0,95801.0,0.00044154]
[1739880123796,2.8127718,95802.0,95801.0,0.00044154]
[1739880124418,2.79641151,95802.0,95801.0,0.00044154]
[1739880125858,1.12923851,95802.0,95801.0,0.00044154]
[1739880126063,5.81105751,95802.0,95801.0,0.00044154]
[1739880126265,5.22025151,95802.0,95801.0,0.00044154]
[1739880126473,1.94948586,95802.0,95801.0,0.00044154]
[1739880127050,0.50335186,95802.0,95801.0,0.00044154]
[1739880127256,0.50135186,95802.0,95801.0,0.00044154]
[1739880127613,0.50135186,95802.0,95801.0,0.00244154]
[1739880127832,0.16206386,95802.0,95801.0,0.00244154]
[1739880128002,3.26423351,95802.0,95801.0,0.00044154]
[1739880128204,4.30899251,95802.0,95801.0,0.00044154]
[1739880128411,4.16529886,95802.0,95801.0,0.00044154]
[1739880128587,3.77913586,95802.0,95801.0,0.00044154]
[1739880128788,3.60688386,95802.0,95801.0,0.00244154]
[1739880128989,2.96861186,95802.0,95801.0,0.00244154]
[1739880129192,2.44962486,95802.0,95801.0,0.00244154]
[1739880129393,2.66704886,95802.0,95801.0,0.00044154]
[1739880129598,3.17109286,95802.0,95801.0,0.00044154]
[1739880129776,3.20090586,95802.0,95801.0,0.00044154]
[1739880130215,3.15906186,95802.0,95801.0,0.00044154]
[1739880130424,2.65723486,95802.0,95801.0,0.00044154]
[1739880130596,2.63406986,95802.0,95801.0,0.00044154]
[1739880132242,2.73657351,95802.0,95801.0,0.00044154]
[1739880133036,2.63406986,95802.0,95801.0,0.00044154]
[1739880134068,1.68405486,95802.0,95801.0,0.00044154]
[1739880134285,0.16206386,95802.0,95801.0,0.12734154]
[1739880134484,0.0001703,95802.0,95801.0,0.12734154]
[1739880134890,0.0001703,95802.0,95801.0,0.38641919]
[1739880135044,0.0001703,95802.0,95801.0,0.44600623]
[1739880135475,0.0001703,95802.0,95801.0,0.44700623]
[1739880135673,0.0001703,95802.0,95801.0,0.45100623]
[1739880136023,0.0001703,95802.0,95801.0,0.44600623]
[1739880136228,0.0001703,95802.0,95801.0,0.45100623]
[1739880136414,0.0001703,95802.0,95801.0,0.78350623]
[1739880136559,0.0001703,95802.0,95801.0,0.77450623]
[1739880136966,0.0001703,95802.0,95801.0,0.78150623]
[1739880137162,0.0001703,95802.0,95801.0,0.77450623]
[1739880138014,0.0001703,95802.0,95801.0,0.93150623]
[1739880138659,0.0001703,95802.0,95801.0,0.95450623]
[1739880138811,0.0001703,95802.0,95801.0,0.80493223]
[1739880139013,0.0001703,95802.0,95801.0,0.79793223]
[1739880139336,0.0001703,95802.0,95801.0,0.96150623]
[1739880139541,0.0001703,95802.0,95801.0,0.90191919]
[1739880147365,0.208714,95825.0,95813.0,0.156554]
[1739880147569,0.208714,95825.0,95803.0,0.023]
[1739880147570,0.208711,95826.0,95815.0,0.0832]
[1739880147754,0.15654,95822.0,95816.0,0.10250365]
[1739880147955,0.0315084,95859.0,95817.0,0.05509907]
[1739880148162,0.156541,95822.0,95818.0,0.10250365]
[1739880148575,0.02924922,95827.0,95818.0,0.10250365]
[1739880148801,0.208698,95832.0,95818.0,0.10250365]
[1739880149054,0.208698,95832.0,95819.0,0.01897037]
[1739880149252,0.156541,95821.0,95820.0,0.10250365]
[1739880151723,0.156541,95821.0,95820.0,0.11350365]
[1739880154723,0.12226654,95830.0,95820.0,0.11350365]
[1739880154920,0.156541,95822.0,95820.0,0.11350365]
[1739880155125,0.156541,95821.0,95820.0,0.11350365]
[1739880155395,0.156541,95821.0,95820.0,0.10850365]
[1739880155680,0.156541,95821.0,95820.0,0.10750365]
[1739880155932,0.156541,95821.0,95820.0,0.10950365]
[1739880156221,0.156541,95821.0,95820.0,0.10450365]
[1739880156465,0.156541,95821.0,95820.0,0.11050365]
[1739880156883,0.08022632,95830.0,95820.0,0.11050365]
[1739880157028,0.156541,95821.0,95820.0,0.11050365]
[1739880157444,0.156541,95821.0,95820.0,0.10850365]
[1739880157608,0.08022632,95830.0,95820.0,0.11550365]
[1739880158048,0.156541,95821.0,95820.0,0.11550365]
[1739880158467,0.208712,95826.0,95820.0,0.11550365]
[1739880158808,0.208712,95826.0,95820.0,0.10250365]
[1739880158928,0.156541,95822.0,95820.0,0.10950365]
[1739880159125,0.156541,95822.0,95820.0,0.14442922]
[1739880159354,0.156541,95822.0,95820.0,0.13742922]
[1739880159555,0.156541,95822.0,95820.0,0.14342922]
[1739880159751,0.156541,95822.0,95820.0,0.13742922]
[1739880160171,0.156541,95822.0,95820.0,0.14342922]
[1739880160374,0.156541,95822.0,95821.0,0.03831802]
[1739880160584,0.156541,95822.0,95821.0,0.14082167]
[1739880161748,0.156541,95822.0,95821.0,0.10850365]
[1739880162149,0.156541,95822.0,95821.0,0.10054365]
[1739880164794,0.156532,95827.0,95821.0,0.10054365]
[1739880164937,0.208705,95829.0,95821.0,0.10054365]
[1739880165164,0.1566832,95839.0,95831.0,0.156525]
[1739880165315,0.1566832,95839.0,95831.0,0.27468115]
[1739880165316,0.0001702,95839.0,95831.0,0.27468115]
[1739880165518,0.156516,95837.0,95831.0,0.19565615]
[1739880165737,0.02549281,95837.0,95835.0,0.156517]
[1739880165958,0.0001702,95839.0,95836.0,0.10250365]
[1739880166352,0.156515,95837.0,95836.0,0.10250365]
[1739880167609,0.02547265,95839.0,95836.0,0.10250365]
[1739880167800,0.156514,95838.0,95836.0,0.10250365]
[1739880168020,0.02547265,95839.0,95836.0,0.10250365]
[1739880168264,0.156515,95837.0,95836.0,0.10250365]
[1739880168503,0.156515,95837.0,95836.0,0.10650365]
[1739880168753,0.156515,95837.0,95836.0,0.10950365]
[1739880168995,0.156515,95837.0,95836.0,0.10550365]
[1739880169262,0.156515,95837.0,95836.0,0.10950365]
[1739880169522,0.156515,95837.0,95836.0,0.10650365]
[1739880169974,0.156515,95837.0,95836.0,0.10950365]
[1739880170895,0.156515,95837.0,95836.0,0.10550365]
[1739880171070,0.156515,95837.0,95836.0,0.10950365]
[1739880173682,0.156514,95838.0,95836.0,0.10950365]
[1739880173965,0.156515,95837.0,95836.0,0.10950365]
[1739880174472,0.156515,95837.0,95836.0,0.10550365]
[1739880174672,0.1566852,95837.0,95836.0,0.10250365]
[1739880174826,0.1566852,95837.0,95836.0,0.10950365]
[1739880175165,0.1566852,95837.0,95836.0,0.10650365]
[1739880175373,0.1566852,95837.0,95836.0,0.10250365]
[1739880175586,0.1566852,95837.0,95836.0,0.10550365]
[1739880175781,0.1566852,95837.0,95836.0,0.10950365]
[1739880179123,0.0001702,95837.0,95836.0,0.27697102]
[1739880179322,0.0001702,95837.0,95836.0,0.42467102]
[1739880180121,0.0001702,95837.0,95836.0,0.42067102]
[1739880180547,0.0001702,95837.0,95836.0,0.11250365]